bitfinex/quotes_SOLUSD_20251118
["timestamp","ask_amount","ask_price","bid_price","bid_amount"]
[1763435690715,4.55000056,133.0,132.99,10.50882769]
[1763435692225,4.55000056,133.0,132.99,9.78882769]
[1763435692624,4.55000056,133.0,132.99,10.50882769]
[1763435693741,18.12096,133.01,132.99,10.50882769]
[1763435694629,0.35000057,133.0,132.99,10.50882769]
[1763435694822,0.35000057,133.0,132.99,9.78882769]
[1763435695218,0.35000057,133.0,132.99,21.29409454]
[1763435695431,0.35000057,133.0,132.99,40.13505454]
[1763435697242,0.35000057,133.0,132.99,28.62978769]
[1763435697424,0.35000057,133.0,132.98,21.29409454]
[1763435697740,0.35000057,133.0,132.98,10.50882769]
[1763435698036,0.35000057,133.0,132.98,22.01409454]
[1763435698336,0.35000057,133.0,132.99,9.78882769]
[1763435699032,0.35000057,133.0,132.99,22.01409454]
[1763435699230,0.35000057,133.0,132.99,28.62978769]
[1763435699633,0.35000057,133.0,132.99,40.13505454]
[1763435699838,0.67,133.07,133.0,9.78882769]
[1763435700037,0.67,133.07,133.03,8.46116295]
[1763435700337,34.16748644,133.13,133.02,11.50526685]
[1763435700338,0.67,133.13,133.07,9.78882769]
[1763435700655,12.27526685,133.16,133.1,21.29409454]
[1763435700859,18.12096,133.13,133.12,6.34277508]
[1763435701025,12.17526685,133.13,133.11,6.34277508]
[1763435701228,0.77,133.15,133.11,6.34277508]
[1763435701526,0.77,133.15,133.1,9.78882769]
[1763435701527,18.12096,133.11,133.1,9.78882769]
[1763435701847,0.2,133.14,133.1,22.01409454]
[1763435702026,18.12096,133.13,133.1,18.95880013]
[1763435702226,18.12096,133.13,133.12,6.33736409]
[1763435702227,18.79096,133.13,133.12,6.33736409]
[1763435702426,18.12096,133.12,133.09,8.44997244]
[1763435702621,0.2,133.14,133.1,18.23880013]
[1763435702846,0.2,133.14,133.13,21.29409454]
[1763435703345,0.2,133.14,133.13,30.43984847]
[1763435703554,0.2,133.14,133.13,18.21458162]
[1763435703758,0.2,133.14,133.13,30.44112041]
[1763435704045,0.2,133.14,133.13,22.01409454]
[1763435704240,0.2,133.14,133.13,18.93544656]
[1763435704443,0.2,133.14,133.13,30.44071341]
[1763435704625,0.2,133.14,133.13,18.93544656]
[1763435705625,0.2,133.14,133.13,30.44071341]
[1763435705856,0.2,133.14,133.13,22.01409454]
[1763435707146,0.2,133.14,133.13,30.41327264]
[1763435707451,0.2,133.14,133.13,22.01409454]
[1763435707625,0.2,133.14,133.13,9.78882769]
[1763435707825,0.2,133.14,133.13,16.08419483]
[1763435708433,0.2,133.14,133.13,16.08083896]
[1763435708754,0.2,133.14,133.13,22.01409454]
[1763435709050,0.2,133.14,133.13,30.41327264]
[1763435709237,0.2,133.14,133.13,22.01409454]
[1763435709438,0.2,133.14,133.13,30.40231567]
[1763435709636,0.2,133.19,133.14,10.50882769]
[1763435709833,0.2,133.19,133.18,21.29409454]
[1763435710039,0.2,133.19,133.18,22.01409454]
[1763435710435,0.2,133.19,133.18,28.29251333]
[1763435710635,0.2,133.19,133.18,30.58649064]
[1763435710841,0.2,133.19,133.18,9.78882769]
[1763435711057,18.32096,133.19,133.18,9.78882769]
[1763435711252,18.32096,133.19,133.18,22.01409454]
[1763435711959,0.2,133.19,133.18,22.01409454]
[1763435712139,0.2,133.19,133.18,28.29251333]
[1763435712336,0.2,133.19,133.18,46.61347333]
[1763435712536,0.2,133.19,133.18,40.33505454]
[1763435713954,0.2,133.19,133.18,28.82978769]
[1763435714256,0.2,133.19,133.18,40.33505454]
[1763435715436,0.2,133.19,133.18,28.10978769]
[1763435715648,0.2,133.19,133.18,9.78882769]
[1763435715955,0.2,133.19,133.18,22.00409454]
[1763435716549,0.2,133.19,133.18,21.29409454]
[1763435716951,0.2,133.19,133.18,22.00409454]
[1763435718963,0.2,133.2,133.18,22.00409454]
[1763435719159,0.2,133.24,133.18,22.00409454]
[1763435719160,0.2,133.24,133.23,21.29409454]
[1763435719359,0.2,133.24,133.23,22.01409454]
[1763435719968,0.2,133.24,133.23,25.02648298]
[1763435720367,0.2,133.24,133.23,13.52121613]
[1763435720665,0.2,133.24,133.23,25.02648298]
[1763435722777,0.2,133.25,133.24,9.78882769]
[1763435722964,0.1,133.33,133.24,32.85263888]
[1763435723150,0.1,133.33,133.32,9.78882769]
[1763435723354,0.7,133.32,133.29,9.78882769]
[1763435723649,0.7,133.32,133.23,21.13334844]
[1763435723650,18.12096,133.28,133.21,6.23854434]
[1763435723848,18.12096,133.28,133.24,11.50526685]
[1763435723849,18.12096,133.25,133.24,11.50526685]
[1763435724050,12.20526685,133.25,133.24,11.50526685]
[1763435724358,12.20526685,133.25,133.22,11.50526685]
[1763435724359,0.7,133.25,133.22,11.50526685]
[1763435724869,0.7,133.25,133.2,11.50526685]
[1763435725180,0.7,133.25,133.24,9.78882769]
[1763435728175,11.60526685,133.33,133.29,9.78882769]
[1763435728366,0.7,133.32,133.29,21.29409454]
[1763435728686,0.1,133.33,133.29,21.29409454]
[1763435728687,0.1,133.33,133.29,9.78882769]
[1763435728859,0.1,133.33,133.32,9.78882769]
[1763435729191,0.8,133.33,133.3,9.78882769]
[1763435729356,18.92096,133.33,133.3,9.78882769]
[1763435729860,0.7,133.32,133.3,9.78882769]
[1763435730187,0.7,133.32,133.29,9.78882769]
[1763435730388,18.12096,133.31,133.28,9.78882769]
[1763435730878,0.7,133.3,133.28,9.78882769]
[1763435731688,0.7,133.3,133.29,9.78882769]
[1763435732153,18.12096,133.29,133.28,9.78882769]
[1763435732473,11.50526685,133.29,133.26,9.78882769]
[1763435732677,18.12096,133.27,133.26,9.78882769]
[1763435733053,18.12096,133.27,133.26,21.29409454]
[1763435733256,18.82096,133.28,133.26,21.29409454]
[1763435733454,18.12096,133.28,133.26,21.29409454]
[1763435733672,18.82096,133.28,133.26,21.29409454]
[1763435733892,18.12096,133.27,133.25,21.29409454]
[1763435734183,18.82096,133.27,133.25,9.78882769]
[1763435734479,0.7,133.26,133.23,11.50526685]
[1763435734682,0.7,133.26,133.22,9.78882769]
[1763435734683,18.12096,133.23,133.22,18.82096]
[1763435734879,18.12096,133.23,133.16,6.23854434]
[1763435735064,18.12096,133.23,133.2,11.50526685]
[1763435735268,18.12096,133.22,133.21,9.78882769]
[1763435735472,18.82096,133.22,133.21,9.78882769]
[1763435735672,18.12096,133.21,133.19,21.29409454]
[1763435735887,18.12096,133.21,133.19,11.50526685]
[1763435736086,18.12096,133.21,133.2,11.50526685]
[1763435737078,0.7,133.24,133.2,21.29409454]
[1763435737276,0.7,133.24,133.22,9.78882769]
[1763435737277,18.12096,133.23,133.22,9.78882769]
[1763435737465,18.12096,133.23,133.2,0.72]
[1763435737666,18.12096,133.22,133.21,9.78882769]
[1763435738588,0.7,133.24,133.21,11.50526685]
[1763435738779,0.7,133.26,133.23,11.50526685]
[1763435738979,12.20526685,133.28,133.23,9.78882769]
[1763435739171,12.20526685,133.28,133.22,0.72]
[1763435739172,11.50526685,133.29,133.25,9.78882769]
[1763435739372,18.12096,133.26,133.25,9.78882769]
[1763435739590,18.12096,133.25,133.22,11.50526685]
[1763435739794,18.12096,133.25,133.23,9.78882769]
[1763435739968,18.12096,133.25,133.24,9.78882769]
[1763435740890,0.7,133.27,133.24,9.78882769]
[1763435741098,18.12096,133.25,133.24,9.78882769]
[1763435741267,0.7,133.32,133.25,9.78882769]
[1763435741471,0.7,133.32,133.28,11.50526685]
[1763435741899,18.12096,133.3,133.28,11.50526685]
[1763435742271,18.12096,133.3,133.25,6.95854434]
[1763435742272,18.12096,133.29,133.25,6.95854434]
[1763435742467,18.12096,133.29,133.28,9.78882769]
[1763435743502,18.84096,133.29,133.28,9.78882769]
[1763435743709,18.12096,133.29,133.28,9.78882769]
[1763435743997,0.72,133.31,133.29,9.78882769]
[1763435744206,18.12096,133.29,133.28,9.78882769]
[1763435744918,0.72,133.29,133.26,6.23854434]
[1763435745074,0.72,133.28,133.26,16.02737203]
[1763435745274,0.72,133.28,133.26,9.78882769]
[1763435745721,18.12096,133.25,133.24,6.23854434]
[1763435746021,18.12096,133.25,133.22,6.23854434]
[1763435746178,18.12096,133.31,133.23,9.78882769]
[1763435746377,18.12096,133.25,133.23,27.53263888]
[1763435747101,18.12096,133.25,133.24,6.23854434]
[1763435747316,18.12096,133.27,133.25,9.78882769]
[1763435747483,18.12096,133.27,133.26,9.78882769]
[1763435747679,12.22526685,133.3,133.26,27.57640802]
[1763435747680,0.72,133.3,133.26,27.57640802]
[1763435747873,18.12096,133.31,133.28,6.28231348]
[1763435748174,0.1,133.33,133.31,9.78882769]
[1763435748382,0.1,133.33,133.32,9.78882769]
[1763435748602,0.1,133.33,133.32,29.67495406]
[1763435748785,0.1,133.33,133.32,17.8330552]
[1763435749179,0.1,133.33,133.32,30.52479962]
[1763435749809,0.2,133.39,133.33,9.78882769]
[1763435750021,0.2,133.39,133.38,6.27380253]
[1763435750325,0.92,133.39,133.35,16.06263022]
[1763435750496,0.2,133.39,133.37,9.78882769]
[1763435750694,8.11422751,133.38,133.35,5.55380253]
[1763435750918,18.12096,133.33,133.29,18.12096]
[1763435751206,0.2,133.39,133.3,9.78882769]
[1763435751207,7.39422751,133.34,133.3,9.78882769]
[1763435751387,25.51518751,133.35,133.29,18.15389773]
[1763435751576,7.39422751,133.34,133.29,17.1830552]
[1763435751779,7.39422751,133.34,133.29,25.54812524]
[1763435751982,8.11422751,133.34,133.29,26.19812524]
[1763435752217,0.72,133.34,133.29,26.19812524]
[1763435752392,18.12096,133.33,133.29,18.15389773]
[1763435752577,18.12096,133.33,133.29,26.19812524]
[1763435752780,18.12096,133.35,133.32,7.39422751]
[1763435753085,0.2,133.39,133.35,9.78882769]
[1763435753303,18.32096,133.39,133.38,9.78882769]
[1763435753501,0.2,133.39,133.38,9.78882769]
[1763435753681,0.2,133.39,133.38,7.39422751]
[1763435755397,18.32096,133.39,133.37,9.78882769]
[1763435755595,0.2,133.39,133.38,7.39422751]
[1763435755793,0.2,133.39,133.37,27.62188289]
[1763435755996,0.2,133.39,133.38,7.39422751]
[1763435759410,0.2,133.39,133.38,17.2230552]
[1763435760290,0.1,133.41,133.39,9.78882769]
[1763435760512,0.1,133.41,133.4,18.14586969]
[1763435760700,0.1,133.41,133.4,26.18913146]
[1763435760898,0.1,133.41,133.4,17.8330552]
[1763435761189,0.1,133.41,133.4,27.90978769]
[1763435761402,18.12096,133.4,133.39,9.78882769]
[1763435761793,0.1,133.41,133.39,26.18895399]
[1763435762002,0.1,133.41,133.4,7.39422751]
[1763435762200,0.1,133.41,133.39,18.79472648]
[1763435762201,0.1,133.41,133.39,36.26568648]
[1763435762511,0.1,133.41,133.4,26.18498009]
[1763435762726,0.1,133.41,133.4,25.53498009]
[1763435762925,0.1,133.41,133.4,17.1830552]
[1763435763138,18.94096,133.41,133.4,9.78882769]
[1763435763308,18.94096,133.41,133.38,7.39422751]
[1763435763309,18.12096,133.39,133.38,18.14075258]
[1763435763511,18.12096,133.39,133.37,26.47288489]
[1763435763828,0.1,133.41,133.37,18.12096]
[1763435763829,8.11422751,133.38,133.37,18.12096]
[1763435764023,18.12096,133.35,133.34,9.78882769]
[1763435764519,18.12096,133.35,133.34,18.14075258]
[1763435764695,0.72,133.37,133.35,9.78882769]
[1763435765198,18.12096,133.35,133.34,8.35192489]
[1763435765397,18.12096,133.35,133.33,9.78882769]
[1763435765699,18.12096,133.35,133.33,17.1830552]
[1763435766017,18.12096,133.35,133.33,9.78882769]
[1763435766231,18.12096,133.33,133.31,8.35192489]
[1763435766407,18.12096,133.3,133.28,8.35192489]
[1763435766607,7.39422751,133.29,133.26,26.47288489]
[1763435766795,7.39422751,133.29,133.24,7.39422751]
[1763435766796,18.12096,133.27,133.24,15.7461524]
[1763435767001,18.12096,133.27,133.25,17.1830552]
[1763435767293,18.12096,133.27,133.25,15.7461524]
[1763435767494,18.12096,133.27,133.26,17.1830552]
[1763435767714,18.12096,133.27,133.26,9.78882769]
[1763435767913,7.39422751,133.38,133.26,9.78882769]
[1763435767914,18.12096,133.28,133.27,9.78882769]
[1763435768293,18.12096,133.28,133.25,7.39422751]
[1763435768294,18.12096,133.27,133.25,7.39422751]
[1763435768493,18.12096,133.27,133.24,8.35192489]
[1763435768494,18.12096,133.27,133.26,9.78882769]
[1763435769614,9.39422751,133.38,133.26,26.18498009]
[1763435769615,0.72,133.33,133.26,26.18498009]
[1763435769816,18.12096,133.28,133.26,8.35856582]
[1763435770123,18.12096,133.28,133.24,12.54760507]
[1763435770124,25.51518751,133.28,133.24,8.35856582]
[1763435770327,2.0,133.35,133.24,8.35856582]
[1763435770328,7.39422751,133.25,133.24,8.35856582]
[1763435770630,7.39422751,133.25,133.22,8.35856582]
[1763435770794,18.12096,133.2,133.19,8.35856582]
[1763435771002,18.12096,133.2,133.16,8.35856582]
[1763435771003,7.39422751,133.2,133.16,8.35856582]
[1763435771218,18.12096,133.18,133.17,9.78882769]
[1763435771397,8.11422751,133.2,133.16,8.35856582]
[1763435771591,7.39422751,133.2,133.16,8.35856582]
[1763435771794,0.72,133.19,133.16,8.35856582]
[1763435772127,8.01158497,133.27,133.17,17.1830552]
[1763435772128,18.12096,133.18,133.17,17.1830552]
[1763435772422,18.12096,133.18,133.17,9.78882769]
[1763435772626,7.39422751,133.21,133.17,9.78882769]
[1763435772627,18.12096,133.19,133.17,10.44882769]
[1763435772826,18.12096,133.19,133.17,25.54162102]
[1763435773135,0.66,133.21,133.16,8.35856582]
[1763435773331,24.34838868,133.27,133.16,8.35856582]
[1763435773332,18.12096,133.17,133.16,9.78882769]
[1763435773958,8.05422751,133.2,133.16,17.1830552]
[1763435773959,18.12096,133.18,133.16,17.1830552]
[1763435774115,18.12096,133.18,133.16,9.78882769]
[1763435774309,18.12096,133.17,133.16,9.78882769]
[1763435774623,18.12096,133.17,133.15,15.95279333]
[1763435774624,18.12096,133.16,133.15,0.2]
[1763435774823,26.17518751,133.16,133.15,0.2]
[1763435775734,0.66,133.16,133.15,0.2]
[1763435775925,7.39422751,133.16,133.15,0.2]
[1763435776446,8.05422751,133.16,133.15,0.2]
[1763435780135,8.05422751,133.16,133.02,7.39422751]
[1763435780136,18.12096,133.13,133.03,11.08116753]
[1763435780437,18.12096,133.13,133.04,9.98882769]
[1763435780438,18.12096,133.08,133.04,9.98882769]
[1763435780648,18.12096,133.02,133.01,0.2]
[1763435780946,25.51518751,133.02,133.01,0.2]
[1763435781239,26.20518751,133.02,133.01,0.2]
[1763435781426,0.69,133.02,133.01,0.2]
[1763435781738,8.08422751,133.02,133.01,0.2]
[1763435782447,8.08422751,133.02,132.93,0.1]
[1763435782448,18.12096,132.98,132.93,0.1]
[1763435782621,0.6,132.95,132.94,5.84605623]
[1763435782839,7.99422751,132.95,132.93,0.1]
[1763435783057,0.6,132.98,132.93,0.1]
[1763435783267,7.39422751,132.95,132.93,0.1]
[1763435783467,7.39422751,132.94,132.93,0.1]
[1763435783827,7.99422751,132.94,132.93,0.1]
[1763435784053,0.6,132.94,132.93,0.1]
[1763435784568,7.39422751,132.94,132.93,0.1]
[1763435784863,0.6,132.98,132.93,0.1]
[1763435785074,7.39422751,132.94,132.93,0.1]
[1763435785758,7.39422751,132.95,132.93,0.1]
[1763435785962,7.39422751,132.94,132.93,0.1]
[1763435786143,0.6,132.97,132.93,0.1]
[1763435786144,7.39422751,132.95,132.93,0.1]
[1763435786345,7.39422751,132.94,132.93,0.1]
[1763435786736,7.99422751,132.94,132.93,0.1]
[1763435787156,7.39422751,132.94,132.93,0.1]
[1763435787332,7.39422751,132.95,132.93,0.1]
[1763435787950,31.49606192,133.02,132.93,0.77]
[1763435787951,7.39422751,132.96,132.93,0.77]
[1763435788257,18.12096,132.99,132.93,0.1]
[1763435788258,7.39422751,132.94,132.93,0.1]
[1763435788856,7.99422751,132.94,132.93,0.1]
[1763435789545,7.39422751,132.94,132.93,0.1]
[1763435789729,7.99422751,132.94,132.93,0.1]
[1763435789932,7.39422751,132.96,132.94,9.78882769]
[1763435790673,7.39422751,132.97,132.94,9.78882769]
[1763435790954,7.39422751,132.98,132.94,9.78882769]
[1763435791150,7.39422751,132.97,132.94,9.78882769]
[1763435791461,18.72096,132.99,132.93,0.1]
[1763435791462,18.12096,132.99,132.93,7.49422751]
[1763435791757,18.12096,132.95,132.93,17.9530552]
[1763435791953,18.12096,132.95,132.94,0.67]
[1763435792160,25.51518751,132.99,132.95,9.78882769]
[1763435792483,0.6,133.05,132.97,7.39422751]
[1763435792651,0.6,133.05,132.98,9.78882769]
[1763435792979,18.12096,132.99,132.98,9.78882769]
[1763435793465,18.12096,132.99,132.98,10.45882769]
[1763435793669,0.6,133.05,132.98,17.8530552]
[1763435793841,2.0,133.1,133.0,9.78882769]
[1763435794040,7.39422751,133.05,133.0,17.1830552]
[1763435794261,0.6,133.07,133.02,7.39422751]
[1763435794468,7.99422751,133.07,133.02,7.39422751]
[1763435794770,18.12096,133.02,133.0,7.39422751]
[1763435795143,18.12096,133.01,132.99,7.39422751]
[1763435795635,18.12096,133.02,133.0,7.39422751]
[1763435796279,18.12096,133.03,133.01,17.1830552]
[1763435796639,0.6,133.1,133.02,17.8530552]
[1763435796977,0.6,133.1,133.04,7.39422751]
[1763435796978,18.12096,133.06,133.04,7.39422751]
[1763435797141,7.99422751,133.1,133.05,17.1830552]
[1763435797336,8.88393528,133.13,133.08,7.39422751]
[1763435797337,7.99422751,133.13,133.08,7.39422751]
[1763435797542,18.12096,133.1,133.08,7.39422751]
[1763435797754,18.12096,133.09,133.07,17.1830552]
[1763435797946,7.39422751,133.13,133.08,7.39422751]
[1763435798147,7.39422751,133.15,133.1,7.39422751]
[1763435798349,50.64684264,133.33,133.12,7.39422751]
[1763435798350,30.5263023,133.17,133.12,7.39422751]
[1763435798576,7.39422751,133.16,133.11,8.06422751]
[1763435799048,18.12096,133.12,133.1,7.39422751]
[1763435799251,7.99422751,133.15,133.1,7.39422751]
[1763435799774,18.12096,133.12,133.11,17.8530552]
[1763435800273,7.39422751,133.17,133.12,9.78882769]
[1763435800571,18.12096,133.13,133.11,8.06422751]
[1763435800770,18.12096,133.13,133.12,8.06422751]
[1763435800973,0.6,133.21,133.12,8.06422751]
[1763435800974,7.39422751,133.19,133.12,8.06422751]
[1763435801147,29.88514822,133.2,133.14,7.39422751]
[1763435801349,0.6,133.21,133.13,0.67]
[1763435801350,7.99422751,133.21,133.16,7.39422751]
[1763435801554,0.1,133.23,133.17,17.1830552]
[1763435801757,0.1,133.23,133.2,7.39422751]
[1763435802171,0.1,133.23,133.22,7.39422751]
[1763435802354,0.1,133.23,133.21,0.67]
[1763435802678,0.1,133.23,133.22,17.1830552]
[1763435803251,0.1,133.23,133.22,9.78882769]
[1763435803574,0.1,133.23,133.22,17.8530552]
[1763435803773,0.1,133.23,133.22,10.45882769]
[1763435803985,18.22096,133.23,133.22,10.45882769]
[1763435804273,18.22096,133.23,133.22,17.8530552]
[1763435804461,0.1,133.23,133.22,17.8530552]
[1763435806066,0.1,133.23,133.22,25.24728271]
[1763435808781,0.7,133.38,133.22,29.30274281]
[1763435809008,11.44968761,133.37,133.32,11.44968761]
[1763435809198,0.7,133.38,133.32,11.44968761]
[1763435809377,0.7,133.37,133.32,11.44968761]
[1763435809558,0.7,133.4,133.33,21.2385153]
[1763435809882,0.1,133.41,133.3,6.01654508]
[1763435809883,0.1,133.41,133.36,9.78882769]
[1763435810085,11.44968761,133.4,133.36,9.78882769]
[1763435810471,18.12096,133.39,133.36,9.78882769]
[1763435810669,18.12096,133.37,133.36,9.78882769]
[1763435810864,11.44968761,133.4,133.36,9.78882769]
[1763435811186,11.44968761,133.4,133.35,11.44968761]
[1763435811187,30.27064761,133.39,133.35,9.78882769]
[1763435811359,11.44968761,133.39,133.35,9.78882769]
[1763435811993,11.44968761,133.39,133.35,10.45882769]
[1763435812188,0.8,133.41,133.35,21.9085153]
[1763435812397,11.44968761,133.4,133.35,21.9085153]
[1763435812691,18.12096,133.37,133.35,21.9085153]
[1763435813175,18.12096,133.37,133.35,21.2385153]
[1763435813495,0.1,133.41,133.36,21.9085153]
[1763435813664,0.1,133.41,133.4,11.44968761]
[1763435813994,0.1,133.41,133.4,21.2385153]
[1763435814286,0.1,133.41,133.4,21.9085153]
[1763435815999,11.44968761,133.48,133.44,9.78882769]
[1763435816364,18.12096,133.45,133.44,9.78882769]
[1763435816977,11.44968761,133.46,133.43,9.78882769]
[1763435817294,18.12096,133.44,133.4,11.44968761]
[1763435817474,18.12096,133.43,133.4,9.78882769]
[1763435817676,18.12096,133.42,133.41,9.78882769]
[1763435818085,18.12096,133.43,133.41,9.78882769]
[1763435818396,11.44968761,133.49,133.43,9.78882769]
[1763435818690,18.12096,133.45,133.43,9.78882769]
[1763435819020,18.12096,133.45,133.44,21.2385153]
[1763435819163,18.12096,133.45,133.44,9.78882769]
[1763435819697,18.12096,133.45,133.42,0.67]
[1763435819698,18.12096,133.45,133.42,11.44968761]
[1763435819864,11.44968761,133.46,133.42,9.78882769]
[1763435820069,12.16968761,133.46,133.42,9.78882769]
[1763435820492,11.44968761,133.46,133.42,9.78882769]
[1763435820817,18.12096,133.4,133.32,0.67]
[1763435820984,18.12096,133.34,133.32,0.67]
[1763435821186,11.44968761,133.37,133.2,51.17067976]
[1763435821187,18.12096,133.37,133.29,11.44968761]
[1763435821488,11.44968761,133.36,133.31,11.44968761]
[1763435821710,11.44968761,133.37,133.33,9.78882769]
[1763435821906,0.72,133.39,133.32,11.44968761]
[1763435822111,11.44968761,133.37,133.32,11.44968761]
[1763435822313,0.72,133.39,133.32,9.78882769]
[1763435822314,18.12096,133.33,133.32,9.78882769]
[1763435822623,11.44968761,133.36,133.34,9.78882769]
[1763435822624,18.12096,133.36,133.34,9.78882769]
[1763435822921,18.12096,133.36,133.34,21.2385153]
[1763435823078,18.12096,133.36,133.34,9.78882769]
[1763435823283,11.44968761,133.35,133.31,9.78882769]
[1763435823583,29.57064761,133.37,133.33,9.78882769]
[1763435823915,0.72,133.38,133.33,9.78882769]
[1763435823916,18.12096,133.34,133.33,9.78882769]
[1763435824317,18.12096,133.32,133.3,9.78882769]
[1763435824610,29.57064761,133.32,133.27,11.44968761]
[1763435824794,18.12096,133.26,133.25,18.79096]
[1763435824981,18.12096,133.26,133.25,11.44968761]
[1763435825187,18.12096,133.26,133.25,21.2385153]
[1763435825589,18.12096,133.26,133.25,21.9085153]
[1763435825788,18.12096,133.28,133.26,9.78882769]
[1763435826321,18.12096,133.28,133.26,10.45882769]
[1763435826544,0.72,133.36,133.28,9.78882769]
[1763435826818,11.44968761,133.38,133.33,21.2385153]
[1763435827029,11.44968761,133.38,133.25,4.58]
[1763435827030,18.12096,133.35,133.29,9.78882769]
[1763435827205,18.12096,133.35,133.34,9.78882769]
[1763435827531,0.72,133.39,133.34,21.2385153]
[1763435827532,11.44968761,133.39,133.34,21.2385153]
[1763435827686,11.44968761,133.4,133.36,9.78882769]
[1763435828192,11.44968761,133.42,133.37,21.9085153]
[1763435828508,11.44968761,133.5,133.4,9.78882769]
[1763435828509,11.44968761,133.45,133.4,9.78882769]
[1763435828813,18.12096,133.47,133.4,21.2385153]
[1763435829002,18.12096,133.42,133.4,9.78882769]
[1763435829223,18.12096,133.41,133.4,9.78882769]
[1763435829431,18.12096,133.41,133.36,0.67]
[1763435829719,11.44968761,133.43,133.37,21.2385153]
[1763435829902,18.12096,133.4,133.37,21.9085153]
[1763435830108,18.12096,133.4,133.37,21.2385153]
[1763435830323,11.44968761,133.43,133.38,12.11968761]
[1763435830504,18.12096,133.4,133.38,12.11968761]
[1763435830702,18.12096,133.4,133.38,0.67]
[1763435831593,18.12096,133.4,133.15,16.64952886]
[1763435831594,11.44968761,133.41,133.35,21.2385153]
[1763435831799,18.12096,133.38,133.35,21.2385153]
[1763435831998,18.12096,133.37,133.36,9.78882769]
[1763435832229,18.12096,133.37,133.36,21.9585153]
[1763435832833,18.12096,133.39,133.37,9.78882769]
[1763435833034,18.12096,133.39,133.37,21.2385153]
[1763435833243,0.08,133.46,133.39,9.78882769]
[1763435833536,18.20096,133.49,133.42,9.78882769]
[1763435833709,0.28,133.53,133.46,9.78882769]
[1763435833916,11.44968761,133.5,133.46,9.78882769]
[1763435834126,0.2,133.53,133.44,0.72]
[1763435834127,11.44968761,133.49,133.44,0.72]
[1763435834332,18.12096,133.46,133.45,21.2385153]
[1763435834528,18.12096,133.46,133.45,9.78882769]
[1763435834730,18.12096,133.46,133.45,0.72]
[1763435834913,0.08,133.51,133.45,0.72]
[1763435835125,18.12096,133.46,133.44,21.2385153]
[1763435835511,18.12096,133.46,133.44,10.50882769]
[1763435835708,18.12096,133.46,133.44,21.9585153]
[1763435835907,11.44968761,133.49,133.44,21.9585153]
[1763435836322,18.12096,133.46,133.44,21.9585153]
[1763435836724,18.12096,133.46,133.38,26.5385153]
[1763435836725,18.12096,133.44,133.43,9.78882769]
[1763435837745,18.12096,133.44,133.43,10.50882769]
[1763435837911,18.12096,133.45,133.43,10.50882769]
[1763435838111,18.12096,133.45,133.44,9.78882769]
[1763435838416,18.12096,133.43,133.4,29.57064761]
[1763435838616,18.12096,133.43,133.4,9.78882769]
[1763435838834,18.12096,133.43,133.4,21.9485153]
[1763435839034,18.12096,133.43,133.4,10.49882769]
[1763435839227,18.12096,133.41,133.4,9.78882769]
[1763435839426,11.44968761,133.46,133.42,9.78882769]
[1763435839740,18.12096,133.43,133.41,9.78882769]
[1763435839939,18.12096,133.43,133.4,9.78882769]
[1763435840141,18.12096,133.43,133.4,10.49882769]
[1763435840318,18.12096,133.43,133.41,0.71]
[1763435840728,18.12096,133.43,133.42,9.78882769]
[1763435841252,18.12096,133.45,133.42,12.15968761]
[1763435841433,29.57064761,133.45,133.39,12.15968761]
[1763435841737,18.12096,133.38,133.36,0.71]
[1763435841958,18.12096,133.38,133.31,33.55992914]
[1763435841959,18.12096,133.37,133.34,11.44968761]
[1763435842123,18.12096,133.37,133.34,9.78882769]
[1763435842320,18.12096,133.36,133.34,10.49882769]
[1763435842527,18.12096,133.36,133.34,0.71]
[1763435842730,18.12096,133.36,133.35,12.15968761]
[1763435842927,18.12096,133.38,133.35,12.15968761]
[1763435843127,18.12096,133.37,133.36,9.78882769]
[1763435843728,18.12096,133.37,133.36,10.49882769]
[1763435844618,11.44968761,133.42,133.36,21.9485153]
[1763435844938,18.12096,133.39,133.38,9.78882769]
[1763435845257,18.12096,133.4,133.38,9.78882769]
[1763435845550,18.12096,133.4,133.39,9.78882769]
[1763435845926,18.12096,133.39,133.38,0.71]